Workbook

Sheet Income Statement
B3: Income Statement
B4: Your Company, Inc.
B5: For Period Ending June 30, 2009
B6: (all numbers in $000)
D8: Current Month | G8: Year to Date
D9: Amount | E9: % of Sales | G9: Amount | H9: % of Sales
B10: REVENUE
B11: Gross Sales | D11: $500 | G11: $2,500
B12: Less sales returns and allowances | D12: 200 | G12: 500
B13: Net Sales | D13: =IF(OR(D11<>0,D12),D11-D12,"") -> $300 | E13: =IF(SUM(D13)=0,"",D13/D13) -> 100% | G13: =IF(OR(G11<>0,G12),G11-G12,"") -> $2,000 | H13: =IF(SUM(G13)=0,"",G13/G13) -> 100%
B15: COST OF SALES
B16: Beginning inventory | D16: $350 | E16: =IF(SUM($D$13)=0,"",D16/$D$13) -> 117% | G16: $240 | H16: =IF(SUM($G$13)=0,"",G16/$G$13) -> 12%
B17: Plus goods purchased / manufactured | D17: 120 | E17: 40% | G17: 900 | H17: 45%
B18: Total Goods Available | D18: =IF(OR(D16<>0,D17),D16+D17,"") -> $470 | E18: 157% | G18: =IF(OR(G16<>0,G17),G16+G17,"") -> $1,140 | H18: 57%
B19: Less ending inventory | D19: 360 | E19: 120% | G19: 360 | H19: 18%
B20: Total Cost of Goods Sold | D20: =IF(OR(SUM(D18)<>0,D19),D18-D19,"") -> $110 | E20: 37% | G20: =IF(OR(SUM(G18)<>0,G19),G18-G19,"") -> $780 | H20: 39%
B21: Gross Profit (Loss) | D21: =IF(OR(SUM(D13)<>0,D20),D13-D20,"") -> $190 | E21: 63% | G21: =IF(OR(SUM(G13)<>0,G20),G13-G20,"") -> $1,220 | H21: 61%
B23: OPERATING EXPENSES
B24: Selling
B25: Salaries and wages | D25: $35 | E25: =IF(SUM($D$13)=0,"",D25/$D$13) -> 12% | G25: $130 | H25: =IF(SUM($G$13)=0,"",G25/$G$13) -> 7%
B26: Commissions | D26: 12 | E26: 4% | G26: 80 | H26: 4%
B27: Advertising | D27: 10 | E27: 3% | G27: 60 | H27: 3%
B28: Depreciation | D28: 14 | E28: 5% | G28: 120 | H28: 6%
B29: Other | D29: 5 | E29: 2% | G29: 30 | H29: 2%
B30: Total Selling Expenses | D30: =IF(SUM(D25:D29),SUM(D25:D29),"") -> $76 | E30: 25% | G30: =IF(SUM(G25:G29),SUM(G25:G29),"") -> $420 | H30: 21%
B31: General/Administrative
B32: Salaries and wages | D32: $12 | E32: =IF(SUM($D$13)=0,"",D32/$D$13) -> 4% | G32: $130 | H32: =IF(SUM($G$13)=0,"",G32/$G$13) -> 7%
B33: Employee benefits | D33: 3 | E33: 1% | G33: 31 | H33: 2%
B34: Payroll taxes | D34: 2 | E34: 1% | G34: 23 | H34: 1%
B35: Insurance | D35: 2 | E35: 1% | G35: 1 | H35: 0%
B36: Rent | D36: 12 | E36: 4% | G36: 23 | H36: 1%
B37: Utilities | D37: 2 | E37: 1% | G37: 30 | H37: 2%
B38: Depreciation & amortization | D38: 1 | E38: 0% | G38: 16 | H38: 1%
B39: Office supplies | D39: 1 | E39: 0% | G39: 8 | H39: 0%
B40: Travel & entertainment | D40: 2 | E40: 1% | G40: 4 | H40: 0%
B41: Postage | D41: 1 | E41: 0% | G41: 11 | H41: 1%
B42: Equipment maintenance & rental | D42: 4 | E42: 1% | G42: 49 | H42: 2%
B43: Interest | D43: 2 | E43: 1% | G43: 31 | H43: 2%
B44: Furniture & equipment | D44: 1 | E44: 0% | G44: 10 | H44: 1%
B45: Total General/Administrative Expenses | D45: =IF(SUM(D32:D44),SUM(D32:D44),"") -> $45 | E45: 15% | G45: =IF(SUM(G32:G44),SUM(G32:G44),"") -> $367 | H45: 18%
B46: Total Operating Expenses | D46: =IF(OR(SUM(D30)<>0,D45),D30+D45,"") -> $121 | E46: 40% | G46: =IF(OR(SUM(G30)<>0,G45),G30+G45,"") -> $787 | H46: 39%
B47: Net Income Before Taxes | D47: =IF(OR(SUM(D21)<>0,D46),D21-D46,"") -> $69 | E47: 23% | G47: =IF(OR(SUM(G21)<>0,G46),G21-G46,"") -> $433 | H47: 22%
B48: Taxes on income | D48: 22 | E48: 7% | G48: 135 | H48: 7%
B49: Net Income After Taxes | D49: =IF(OR(SUM(D47)<>0,D48),D47-D48,"") -> $47 | E49: 16% | G49: =IF(OR(SUM(G47)<>0,G48),G47-G48,"") -> $298 | H49: 15%
B50: Extraordinary gain or loss | D50: $0 | E50: 0% | G50: $0 | H50: 0%
B51: Income tax on extraordinary gain | D51: 0 | E51: 0% | G51: 0 | H51: 0%
B52: NET INCOME (LOSS) | D52: =IF(OR(OR(SUM(D49)<>0,D50),D51),D49+D50-D51,"") -> $47 | E52: 16% | G52: =IF(OR(OR(SUM(G49)<>0,G50),G51),G49+G50-G51,"") -> $298 | H52: 15%
